bitfinex/quotes_SOLUSD_20250204
["timestamp","ask_amount","ask_price","bid_price","bid_amount"]
[1738640066646,14.37527478,213.99,213.93,0.03]
[1738640066857,0.87636281,214.05,213.93,0.03]
[1738640066858,14.37527478,214.0,213.93,14.40527478]
[1738640068138,14.37527478,213.99,213.93,0.03]
[1738640069052,14.37527478,213.98,213.93,0.03]
[1738640069823,14.37527478,213.97,213.93,0.03]
[1738640070655,9.22018307,213.97,213.93,0.03]
[1738640070862,10.09662447,213.96,213.93,0.03]
[1738640071049,9.22018307,213.96,213.93,0.03]
[1738640071438,9.22018307,213.97,213.93,0.03]
[1738640072035,9.22018307,213.94,213.93,0.03]
[1738640072257,10.09690495,213.94,213.93,0.03]
[1738640073628,9.22018307,213.94,213.93,0.03]
[1738640074770,14.41184072,213.94,213.93,0.03]
[1738640075126,14.41184072,213.94,213.93,0.453]
[1738640077471,0.87663343,214.0,213.94,13.41184853]
[1738640077633,14.41184072,214.0,213.93,0.03]
[1738640077834,0.93932158,214.06,213.95,0.133]
[1738640078064,0.87624928,214.05,213.96,7.7289]
[1738640078441,0.87624928,214.05,213.97,0.133]
[1738640078634,0.4672,214.04,213.97,0.133]
[1738640078838,0.87628734,214.03,213.97,0.133]
[1738640079347,14.41184072,214.0,213.97,0.133]
[1738640080269,14.41184072,213.99,213.97,0.133]
[1738640080567,14.41184072,213.98,213.97,0.133]
[1738640082181,14.41184072,214.0,213.97,0.133]
[1738640082347,14.41184072,213.99,213.97,0.133]
[1738640082550,14.41184072,213.98,213.97,0.133]
[1738640083239,14.41184072,213.99,213.97,0.133]
[1738640083663,14.41184072,213.98,213.97,0.133]
[1738640084771,14.41184072,213.99,213.97,0.133]
[1738640084976,14.41184072,214.03,213.97,0.133]
[1738640085159,14.41184072,214.04,213.97,0.133]
[1738640085348,14.41184072,214.03,213.97,0.133]
[1738640085676,14.41184072,214.04,213.97,0.133]
[1738640085847,14.41184072,214.04,213.97,4.8065]
[1738640086251,14.47484072,214.06,213.98,27.82368925]
[1738640086446,0.063,214.06,213.99,14.41184072]
[1738640086655,0.063,214.06,214.0,13.41184853]
[1738640086851,0.063,214.06,214.03,4.6722]
[1738640087051,0.063,214.06,214.04,14.41184072]
[1738640087678,0.063,214.06,214.03,4.6722]
[1738640087990,14.41184072,214.04,213.99,0.133]
[1738640088159,14.41184072,214.02,213.99,0.133]
[1738640088486,14.41184072,214.04,213.99,0.133]
[1738640089462,14.41184072,214.04,213.99,4.806]
[1738640089889,14.41184072,214.04,213.99,0.133]
[1738640091288,14.41184072,214.02,213.99,0.133]
[1738640094373,14.41184072,214.01,213.99,0.133]
[1738640095960,14.41184072,214.03,213.99,0.133]
[1738640096686,14.41184072,214.04,213.99,0.133]
[1738640096885,14.41184072,214.04,213.99,4.806]
[1738640097094,14.41184072,214.05,213.99,4.806]
[1738640097383,14.41184072,214.04,213.99,0.133]
[1738640097765,14.47484072,214.06,213.99,4.806]
[1738640098193,14.41184072,214.05,213.99,4.806]
[1738640099662,14.41184072,214.05,213.99,4.836]
[1738640099858,14.41184072,214.04,213.99,4.836]
[1738640100086,14.41184072,214.05,213.99,4.836]
[1738640101270,14.41184072,214.04,213.99,0.163]
[1738640102669,14.41184072,214.04,213.99,4.836]
[1738640103894,0.063,214.06,214.0,27.82368925]
[1738640104383,0.063,214.06,214.0,14.41184072]
[1738640104789,0.063,214.06,214.03,27.82368925]
[1738640104974,0.063,214.06,214.05,27.82368925]
[1738640105290,0.063,214.06,214.04,1.52]
[1738640105868,0.063,214.06,214.05,13.41184853]
[1738640106199,0.063,214.06,214.05,27.82368925]
[1738640107392,0.063,214.19,214.12,20.0]
[1738640107598,0.063,214.19,214.18,27.82368925]
[1738640107797,0.063,214.19,214.18,13.41184853]
[1738640107971,0.063,214.19,214.18,32.49258925]
[1738640108167,0.063,214.19,214.18,18.08074853]
[1738640108700,0.063,214.19,214.18,32.49258925]
[1738640108881,0.063,214.22,214.14,2.35287511]
[1738640109084,0.063,214.22,214.13,8.0803]
[1738640109399,0.063,214.22,214.15,13.41184853]
[1738640109701,0.063,214.22,214.19,27.82368925]
[1738640109890,0.063,214.22,214.21,32.49198925]
[1738640110802,0.063,214.28,214.25,48.03]
[1738640110990,0.063,214.28,214.27,27.82368925]
[1738640111706,0.063,214.28,214.27,56.20712008]
[1738640111886,21.52003634,214.4,214.3,20.0]
[1738640112088,14.41184072,214.38,214.31,14.41184072]
[1738640112408,14.41184072,214.39,214.31,14.41184072]
[1738640112988,0.063,214.41,214.35,14.41184072]
[1738640113288,0.063,214.41,214.38,13.41184853]
[1738640113805,0.063,214.41,214.39,13.41184853]
[1738640114008,0.063,214.41,214.36,14.41184072]
[1738640114304,14.41184072,214.4,214.34,14.41184072]
[1738640114673,0.063,214.41,214.35,13.41184853]
[1738640115289,14.47484072,214.41,214.33,14.41184072]
[1738640115511,14.41184072,214.39,214.32,7.7492]
[1738640116074,14.41184072,214.36,214.32,7.7492]
[1738640116474,14.41184072,214.38,214.32,12.415]
[1738640116678,22.96277403,214.4,214.33,13.41184853]
[1738640116908,23.02577403,214.41,214.34,22.96277403]
[1738640117207,22.96277403,214.4,214.33,36.37462256]
[1738640117498,22.96277403,214.4,214.33,13.41184853]
[1738640117703,22.96277403,214.39,214.33,13.41184853]
[1738640118609,22.96277403,214.38,214.33,13.41184853]
[1738640118808,22.96277403,214.38,214.32,7.7492]
[1738640119012,1.40407128,214.41,214.32,7.7492]
[1738640119315,22.96277403,214.37,214.32,7.7492]
[1738640119617,22.96277403,214.38,214.32,7.7492]
[1738640123318,22.96277403,214.33,214.26,8.0866]
[1738640123491,22.96277403,214.31,214.26,8.0866]
[1738640123689,23.83751648,214.37,214.29,22.96277403]
[1738640123994,0.063,214.41,214.35,13.41184853]
[1738640125011,0.063,214.41,214.37,22.96277403]
[1738640125206,0.063,214.41,214.37,13.41184853]
[1738640126201,0.063,214.41,214.37,36.37462256]
[1738640126829,0.063,214.41,214.39,13.41184853]
[1738640127417,0.063,214.41,214.38,13.41184853]
[1738640129032,0.063,214.41,214.37,31.01917403]
[1738640129213,0.063,214.41,214.37,8.0564]
[1738640130416,22.96277403,214.4,214.34,20.0]
[1738640130736,22.96277403,214.4,214.33,1.6023]
[1738640130936,22.96277403,214.34,214.26,7.5883]
[1738640131102,22.88668335,214.32,214.26,7.5883]
[1738640131305,22.96277403,214.32,214.26,7.5883]
[1738640132106,23.42927403,214.33,214.26,7.5883]
[1738640132331,22.96277403,214.32,214.26,7.5883]
[1738640132945,22.96277403,214.31,214.23,22.96277403]
[1738640133127,22.96277403,214.29,214.22,22.96277403]
[1738640133438,22.96277403,214.28,214.21,7.6533]
[1738640133603,22.96277403,214.29,214.21,30.61607403]
[1738640134545,0.4666,214.28,214.22,22.96277403]
[1738640135823,0.4666,214.28,214.26,0.03]
[1738640136465,22.96277403,214.29,214.26,0.03]
[1738640136743,23.02577403,214.32,214.26,0.03]
[1738640137233,22.96277403,214.31,214.26,0.03]
[1738640138639,14.36120207,214.31,214.26,0.03]
[1738640139511,14.36120207,214.3,214.26,0.03]
[1738640139712,14.36120207,214.27,214.26,0.03]
[1738640141128,14.82790207,214.27,214.26,0.03]
[1738640141333,15.70325023,214.27,214.26,0.03]
[1738640141645,18.86995023,214.27,214.11,7.6791]
[1738640141823,14.36120207,214.17,214.11,7.6791]
[1738640142441,14.36120207,214.18,214.11,7.6791]
[1738640142648,23.00498643,214.19,214.11,30.68408643]
[1738640143160,23.00498643,214.2,214.13,23.00498643]
[1738640143321,23.00498643,214.23,214.15,23.00498643]
[1738640143516,23.00498643,214.2,214.13,23.00498643]
[1738640143981,23.00498643,214.2,214.12,36.41683496]
[1738640144422,23.00498643,214.2,214.12,41.08693496]
[1738640144846,23.00498643,214.22,214.15,23.00498643]
[1738640145058,23.00498643,214.24,214.16,23.00498643]
[1738640145927,3.54549,214.28,214.12,18.08194853]
[1738640145928,3.42,214.28,214.21,23.00498643]
[1738640146228,23.06798643,214.32,214.25,23.00498643]
[1738640146424,23.00498643,214.31,214.24,23.00498643]
[1738640146742,0.93810699,214.32,214.22,23.00498643]
[1738640146947,1.40460699,214.32,214.22,23.00498643]
[1738640147562,23.00498643,214.25,214.17,23.00498643]
[1738640147767,23.00498643,214.24,214.17,13.41184853]
[1738640147928,23.00498643,214.23,214.17,13.41184853]
[1738640148454,23.00498643,214.21,214.16,1.538]
[1738640149361,23.00498643,214.22,214.16,1.538]
[1738640150271,23.00498643,214.21,214.16,1.538]
[1738640151031,23.00498643,214.22,214.16,1.538]
[1738640152538,0.87539741,214.25,214.16,24.54298643]
[1738640152747,23.00498643,214.24,214.16,29.21228643]
[1738640153132,23.00498643,214.21,214.16,1.538]
[1738640153863,23.00498643,214.22,214.16,1.538]
[1738640155645,23.00498643,214.24,214.17,23.00498643]
[1738640156539,23.00498643,214.23,214.16,29.21228643]
[1738640157068,23.00498643,214.24,214.17,23.00498643]
[1738640158466,23.00498643,214.24,214.17,27.67408643]
[1738640159552,23.00498643,214.25,214.18,23.00498643]
[1738640159751,23.00498643,214.25,214.18,27.67388643]
[1738640160175,23.00498643,214.24,214.18,4.6689]
[1738640161060,23.00498643,214.24,214.16,1.568]
[1738640161061,23.00498643,214.22,214.16,29.24218643]
[1738640161251,23.00498643,214.22,214.16,6.2372]
[1738640161967,23.00498643,214.22,214.16,1.568]
[1738640162463,23.00498643,214.2,214.16,1.568]
[1738640164303,23.00498643,214.21,214.16,1.568]
[1738640164463,23.00498643,214.22,214.16,1.568]
[1738640164665,14.37340112,214.22,214.16,1.568]
[1738640166186,0.93831715,214.26,214.16,1.568]
[1738640166187,14.37340112,214.23,214.16,15.94140112]
[1738640166390,14.37340112,214.23,214.16,20.61070112]
[1738640166799,14.37340112,214.23,214.16,6.2373]
[1738640167488,14.37340112,214.22,214.16,1.568]
[1738640167887,14.37340112,214.25,214.17,14.37340112]
[1738640168291,14.37340112,214.24,214.17,14.37340112]
[1738640168480,14.37340112,214.24,214.16,20.61070112]
[1738640168883,14.37340112,214.23,214.17,28.03]
[1738640169093,14.37340112,214.23,214.16,15.94140112]
[1738640169661,14.37340112,214.21,214.16,1.568]
[1738640170064,14.37340112,214.23,214.16,1.568]
[1738640170377,14.37340112,214.22,214.16,1.568]
[1738640170873,14.37340112,214.23,214.16,1.568]
[1738640171091,14.37340112,214.22,214.16,1.568]
[1738640171791,14.37340112,214.2,214.16,0.03]
[1738640171995,14.37340112,214.18,214.16,0.03]
[1738640173793,14.37340112,214.19,214.16,0.03]
[1738640174372,14.37340112,214.2,214.16,0.03]
[1738640174996,14.37340112,214.23,214.16,0.03]
[1738640175374,14.37340112,214.22,214.16,0.03]
[1738640176395,14.37340112,214.2,214.16,0.03]
[1738640177702,14.37340112,214.19,214.16,0.03]
[1738640178098,14.37340112,214.2,214.16,0.03]
[1738640179693,14.37340112,214.19,214.16,0.03]
[1738640180204,14.37340112,214.2,214.16,0.03]
[1738640181603,0.65519,214.26,214.16,0.03]
[1738640181604,14.37340112,214.17,214.16,0.03]
[1738640182097,14.37340112,214.18,214.16,0.03]
[1738640182281,14.37340112,214.17,214.16,0.03]
[1738640182482,14.37340112,214.19,214.16,0.03]
[1738640183200,14.37340112,214.18,214.16,0.03]
[1738640183415,14.37340112,214.19,214.16,0.03]
[1738640184102,14.37340112,214.17,214.16,0.03]
[1738640184407,14.37340112,214.18,214.16,0.03]
[1738640188607,9.20244577,214.18,214.16,0.03]
[1738640188813,9.20244577,214.17,214.16,0.03]
[1738640189420,46.13771885,214.17,214.16,0.03]
[1738640189595,47.01352823,214.17,214.16,0.03]
[1738640189930,9.20244577,214.19,214.16,0.03]
[1738640190096,0.87580084,214.24,214.16,0.03]
[1738640190414,0.12549,214.23,214.16,0.03]
[1738640190616,9.20244577,214.23,214.17,9.20244577]
[1738640190821,9.26544577,214.26,214.2,13.41184853]
[1738640190984,9.20244577,214.25,214.2,13.41184853]
[1738640191191,9.20244577,214.24,214.16,22.6442943]
[1738640191391,9.20244577,214.24,214.17,9.20244577]
[1738640192715,14.37061172,214.24,214.18,13.41184853]
[1738640193512,14.37061172,214.23,214.16,27.81246025]
[1738640195417,14.37061172,214.24,214.16,27.81246025]
[1738640196235,14.49610172,214.25,214.18,13.41184853]
[1738640196394,14.49610172,214.25,214.18,13.44184853]
[1738640196728,14.43361172,214.26,214.19,14.37061172]
[1738640196890,14.43361172,214.26,214.2,13.41184853]
[1738640197088,0.063,214.26,214.25,14.37061172]
[1738640197312,0.063,214.26,214.25,13.41184853]
[1738640198413,0.063,214.26,214.21,4.25816054]
[1738640198727,14.37061172,214.25,214.19,13.41184853]
[1738640198901,14.37061172,214.25,214.23,13.41184853]
[1738640199899,14.43361172,214.26,214.23,13.41184853]
[1738640200422,14.37061172,214.24,214.18,0.03]
[1738640200616,14.37061172,214.22,214.18,0.03]
[1738640202115,14.37061172,214.22,214.2,13.41184853]
[1738640203129,14.37061172,214.22,214.19,20.0]
[1738640203130,14.37061172,214.22,214.18,0.03]
[1738640203432,14.37061172,214.2,214.18,13.44184853]
[1738640203614,14.37061172,214.22,214.18,13.44184853]
[1738640204301,14.37061172,214.22,214.18,0.03]
[1738640204630,14.37061172,214.22,214.19,13.41184853]
[1738640204932,14.37061172,214.24,214.19,13.41184853]
[1738640205232,14.37061172,214.22,214.19,12.41184853]
[1738640205604,14.37061172,214.2,214.18,0.03]
[1738640205827,15.24628151,214.2,214.18,0.03]
[1738640206310,14.37061172,214.2,214.18,0.03]
[1738640207927,0.87555047,214.19,214.18,0.03]
[1738640208923,1.00104047,214.19,214.18,0.03]
[1738640210629,1.0,214.12,214.06,20.0]
[1738640210934,1.0,214.12,214.11,20.0]
[1738640211726,1.0,214.14,214.11,14.37061172]
[1738640211930,1.0,214.16,214.13,14.37061172]
[1738640212124,1.0,214.14,214.11,14.37061172]
[1738640212747,2.0,214.14,214.12,13.41184853]
[1738640212905,1.0,214.14,214.12,13.41184853]
[1738640213737,1.0,214.16,214.12,13.41184853]
[1738640213913,1.0,214.12,214.11,14.37061172]
[1738640214233,1.0,214.08,214.04,15.95261172]
[1738640214401,1.0,214.07,214.04,1.582]
[1738640214603,1.0,214.07,214.05,13.41184853]
[1738640217229,1.0,214.06,214.05,13.41184853]
[1738640217419,1.0,214.06,214.03,6.5019]
[1738640217619,1.0,214.06,214.05,33.41184853]
[1738640220538,1.0,214.06,214.05,20.0]
[1738640220740,1.0,214.06,214.05,20.03]
[1738640221443,1.0,214.06,214.05,0.03]
[1738640222147,1.0,214.06,214.05,20.03]
[1738640224551,2.0,214.13,214.09,20.0]
[1738640224716,2.0,214.15,214.12,9.20984619]
[1738640224915,2.0,214.15,214.14,9.20984619]
[1738640225129,1.0,214.13,214.12,9.20984619]
[1738640225337,1.0,214.12,214.1,17.36247526]
[1738640225531,1.0,214.12,214.11,9.20984619]
[1738640225738,1.0,214.14,214.13,20.0]
[1738640226260,1.0,214.14,214.13,33.41184853]
[1738640226448,2.0,214.19,214.14,13.41184853]
[1738640226613,1.0,214.19,214.17,14.37184376]
[1738640226813,0.063,214.2,214.19,13.41184853]
[1738640227313,2.0,214.18,214.17,3.95062673]
[1738640227517,1.0,214.15,214.1,4.6707]
[1738640227813,1.0,214.15,214.14,33.41184853]
[1738640228539,1.0,214.15,214.14,20.0]
[1738640228751,1.0,214.15,214.12,19.04204376]
[1738640228928,1.0,214.13,214.12,19.04204376]
[1738640229241,2.0,214.16,214.13,13.41184853]
[1738640229445,2.0,214.18,214.15,20.0]
[1738640229732,14.43484376,214.2,214.19,33.41184853]
[1738640229733,0.063,214.2,214.19,33.41184853]
[1738640229951,2.063,214.26,214.23,20.0]
[1738640230160,2.063,214.26,214.23,34.37184376]
[1738640230344,2.063,214.26,214.24,13.41184853]
[1738640230720,2.063,214.26,214.2,19.04014376]
[1738640230950,1.0,214.22,214.21,13.41184853]
[1738640231125,1.0,214.24,214.21,13.41184853]
[1738640231327,2.0,214.24,214.21,13.41184853]
[1738640231565,1.0,214.22,214.21,13.41184853]
[1738640231756,1.0,214.2,214.17,14.37184376]
[1738640231926,1.0,214.17,214.15,14.37184376]
[1738640232126,1.0,214.17,214.12,6.6187]
[1738640232127,0.95479811,214.15,214.12,25.66074376]
[1738640232447,0.95479811,214.15,214.14,20.0]
[1738640232647,1.95479811,214.15,214.14,13.41184853]
[1738640233835,1.95479811,214.17,214.15,13.41184853]
[1738640234045,1.95479811,214.17,214.14,13.41184853]
[1738640234252,1.95479811,214.15,214.14,33.41184853]
[1738640234448,0.95479811,214.15,214.14,33.41184853]
[1738640235360,1.0,214.17,214.14,47.78369229]
[1738640235541,1.95479811,214.19,214.17,33.41184853]
[1738640236650,1.95479811,214.19,214.17,20.0]
[1738640237028,1.0,214.13,214.11,4.6703]
[1738640237963,1.0,214.13,214.12,33.41184853]
[1738640238181,1.0,214.13,214.12,47.78369229]
[1738640238644,0.95479811,214.14,214.12,34.37184376]
[1738640239684,0.95479811,214.14,214.13,13.41184853]
[1738640239852,0.95479811,214.16,214.15,33.41184853]
[1738640240177,0.95479811,214.16,214.15,47.78369229]
[1738640240554,0.95479811,214.16,214.15,33.41184853]
[1738640240759,1.95479811,214.14,214.12,19.04204376]
[1738640241153,1.95479811,214.14,214.13,13.41184853]
[1738640241644,1.95479811,214.14,214.1,19.04224376]
[1738640241845,1.95479811,214.1,214.06,19.04324376]
[1738640242181,0.95479811,214.06,214.05,0.03]
[1738640246590,0.95479811,214.06,214.05,33.44184853]
[1738640247378,0.95479811,214.06,214.05,47.81369229]
[1738640249108,1.0,214.09,214.06,13.41184853]
[1738640249294,1.0,214.13,214.12,20.0]
[1738640249454,1.0,214.15,214.13,13.41184853]
[1738640249778,0.95479811,214.16,214.15,13.41184853]
[1738640254609,0.95479811,214.16,214.15,32.45329229]
[1738640254914,0.063,214.17,214.16,13.41184853]
[1738640256009,1.063,214.17,214.16,18.08124853]
[1738640256222,2.01779811,214.17,214.16,20.0]
[1738640256509,1.0,214.12,214.11,19.04214376]
[1738640257012,1.0,214.16,214.15,33.41184853]
[1738640258404,0.063,214.17,214.16,13.41184853]
[1738640258611,0.063,214.17,214.16,27.78369229]
[1738640258782,0.063,214.17,214.16,13.41184853]
[1738640259305,1.063,214.17,214.16,13.41184853]
[1738640261087,0.063,214.17,214.16,18.08124853]
[1738640261288,0.063,214.17,214.16,32.45309229]
[1738640261714,1.063,214.17,214.16,32.45309229]
[1738640261912,1.063,214.17,214.16,18.08124853]
[1738640262523,1.01779811,214.17,214.13,4.6698]
[1738640262686,1.95479811,214.14,214.12,14.37184376]
[1738640262887,1.95479811,214.14,214.13,14.37184376]
[1738640263318,0.063,214.17,214.16,20.0]
[1738640263496,0.063,214.17,214.16,34.37184376]
[1738640263820,0.063,214.17,214.16,47.78369229]
[1738640264594,0.063,214.17,214.16,52.45309229]
[1738640269525,0.063,214.26,214.25,13.41184853]
[1738640269827,0.063,214.26,214.25,27.78369229]
[1738640270735,1.0,214.34,214.33,20.0]
[1738640270937,1.95479811,214.37,214.36,20.0]
[1738640272603,1.95479811,214.37,214.36,33.41184853]
[1738640272908,2.01779811,214.39,214.38,33.41184853]
[1738640273928,1.01779811,214.39,214.38,47.78369229]
[1738640274139,1.01779811,214.39,214.38,33.41184853]
[1738640274631,0.063,214.39,214.38,33.41184853]
[1738640274805,0.063,214.39,214.38,47.78369229]
[1738640277361,0.063,214.41,214.39,13.41184853]
[1738640277667,0.95479811,214.45,214.42,13.41184853]
[1738640277873,0.95479811,214.45,214.44,20.0]
[1738640278927,1.95479811,214.45,214.44,20.0]
[1738640279386,1.95479811,214.41,214.39,14.37184376]
[1738640279667,1.95479811,214.41,214.4,33.41184853]
[1738640279960,1.0,214.41,214.4,47.78369229]
[1738640280847,1.0,214.42,214.4,47.78369229]
[1738640281155,0.95479811,214.45,214.4,47.78369229]
[1738640281156,1.0,214.44,214.42,13.41184853]
[1738640281829,0.95479811,214.43,214.42,13.41184853]
[1738640282028,1.0,214.44,214.42,13.41184853]
[1738640282638,1.0,214.44,214.42,27.78369229]
[1738640283544,0.95479811,214.43,214.42,13.41184853]
[1738640284356,1.0,214.44,214.42,13.41184853]
[1738640284572,0.95479811,214.43,214.42,13.41184853]
[1738640284760,0.063,214.45,214.44,33.41184853]
[1738640285088,0.063,214.45,214.44,47.78369229]
[1738640285264,0.063,214.51,214.48,20.0]
[1738640285456,0.063,214.53,214.52,20.0]
[1738640285652,0.063,214.53,214.52,47.78369229]
[1738640285857,1.0,214.58,214.56,20.0]
[1738640286181,0.063,214.59,214.58,13.41184853]
[1738640286385,0.063,214.63,214.62,13.41184853]
[1738640286563,0.063,214.63,214.61,13.41184853]
[1738640286882,0.063,214.67,214.66,20.0]
[1738640286883,0.0001,214.67,214.66,20.0]
[1738640287187,1.0,214.74,214.66,20.0]
[1738640287188,1.0,214.74,214.73,20.0]
[1738640287347,1.0,214.74,214.73,33.41184853]
[1738640287550,1.0,214.74,214.73,47.78369229]
[1738640288684,1.0,214.74,214.73,33.41184853]
[1738640289388,1.0,214.76,214.74,13.41184853]
[1738640289583,1.0,214.81,214.78,20.0]
[1738640289788,1.0,214.83,214.82,20.0]
[1738640289990,1.0,214.85,214.83,13.41184853]
[1738640290285,9.7869,214.88,214.83,13.41184853]
[1738640290286,1.0,214.87,214.86,20.0]
[1738640291183,1.0,214.89,214.86,33.41184853]
[1738640291354,1.0,214.89,214.88,20.0]
[1738640291784,1.0,214.89,214.8,20.0]
[1738640292087,1.0,214.84,214.8,20.0]
[1738640292275,1.0,214.82,214.72,4.657]
[1738640292585,1.0,214.79,214.78,33.41184853]
[1738640293287,22.87471791,214.79,214.69,4.46205636]
[1738640293450,22.87471791,214.77,214.69,22.87471791]
[1738640293991,0.5230441,214.76,214.65,28.73614555]
[1738640294163,1.0,214.79,214.65,28.73614555]
[1738640294366,22.87471791,214.71,214.65,28.73614555]
[1738640294688,0.5230441,214.78,214.69,20.0]
[1738640294689,22.87471791,214.73,214.69,20.0]
[1738640294856,22.87471791,214.7,214.65,28.73614555]
[1738640295064,0.5230441,214.72,214.55,42.29438013]
[1738640295065,22.87471791,214.66,214.59,22.87471791]
[1738640295458,22.87471791,214.66,214.6,13.41184853]
[1738640295774,22.87471791,214.67,214.6,13.41184853]
[1738640295994,0.25098,214.71,214.6,13.41184853]
[1738640295995,22.87471791,214.66,214.6,13.41184853]
[1738640296484,22.87471791,214.66,214.63,20.0]
[1738640297161,22.87471791,214.67,214.63,20.0]
[1738640297492,22.87471791,214.68,214.6,36.28656644]
[1738640297794,22.87471791,214.67,214.6,36.28656644]
[1738640298158,22.87471791,214.63,214.56,22.87471791]
[1738640298365,22.87471791,214.67,214.6,22.87471791]
[1738640298990,22.87471791,214.66,214.59,22.87471791]
[1738640299370,22.87471791,214.65,214.61,20.0]
[1738640299890,22.87471791,214.63,214.55,22.87471791]
[1738640300190,22.87471791,214.64,214.6,20.0]
[1738640300382,22.87471791,214.64,214.57,22.87471791]
[1738640300984,22.87471791,214.64,214.6,20.0]
[1738640301483,22.87471791,214.65,214.6,20.0]
[1738640301688,22.87471791,214.64,214.6,20.0]
[1738640302011,22.87471791,214.64,214.48,2.34496426]
[1738640302012,23.12569791,214.61,214.51,22.87471791]
[1738640302327,22.87471791,214.52,214.46,22.87471791]
[1738640302610,22.87471791,214.5,214.42,22.93771791]
[1738640302781,22.87471791,214.5,214.45,20.0]
[1738640303097,22.87471791,214.52,214.44,22.87471791]
[1738640303308,22.87471791,214.5,214.42,27.60131791]
[1738640303519,22.87471791,214.52,214.44,27.53791791]
[1738640303678,0.5230441,214.56,214.48,22.87471791]
[1738640303679,22.87471791,214.56,214.48,22.87471791]
[1738640303875,26.27471791,214.6,214.52,22.87471791]
[1738640304077,3.4,214.6,214.53,22.87471791]
[1738640304380,3.4,214.6,214.57,20.0]
[1738640304700,3.4,214.6,214.54,22.87471791]
[1738640304997,3.4,214.6,214.57,20.0]
[1738640309105,6.0715,214.65,214.51,13.41184853]
[1738640309106,28.94621791,214.65,214.59,20.0]
[1738640309398,0.5230441,214.66,214.59,20.0]
[1738640309612,22.87471791,214.65,214.59,20.0]
[1738640310807,0.5230441,214.64,214.58,22.87471791]
[1738640311008,22.87471791,214.61,214.54,22.87471791]
[1738640311203,23.39776201,214.61,214.54,22.87471791]
[1738640311512,23.39776201,214.61,214.55,20.0]
[1738640311800,0.03,214.67,214.63,20.0]
[1738640311993,0.03,214.67,214.66,22.87471791]
[1738640313182,0.03,214.67,214.65,22.87471791]
[1738640313402,0.03,214.67,214.64,22.87471791]
[1738640313910,0.03,214.67,214.65,22.87471791]
[1738640314097,0.03,214.67,214.64,22.87471791]
[1738640314295,0.03,214.67,214.64,20.0]
[1738640314498,0.5530441,214.67,214.61,22.87471791]
[1738640314693,0.03,214.67,214.61,22.87471791]
[1738640316513,0.03,214.67,214.62,22.87471791]
[1738640317212,0.03,214.67,214.64,22.87471791]
[1738640317418,0.03,214.67,214.66,22.87471791]
[1738640317596,2.0621441,214.8,214.69,20.0]
[1738640317799,2.0621441,214.8,214.74,22.87471791]
[1738640318113,22.87471791,214.78,214.69,20.0]
[1738640318295,0.5230441,214.78,214.69,20.0]
[1738640318703,0.5230441,214.78,214.7,4.6576]
[1738640318903,55.3,214.81,214.74,20.0]
[1738640319316,55.3,214.81,214.8,20.0]
[1738640319492,3.4,214.84,214.8,20.0]
[1738640319688,3.4,214.84,214.79,22.87471791]
[1738640320335,3.4,214.84,214.81,20.0]
[1738640320712,23.39776201,214.85,214.81,20.0]
[1738640320911,0.5230441,214.85,214.81,20.0]
[1738640321129,0.5230441,214.85,214.79,22.87471791]
[1738640321497,3.55549,214.87,214.85,20.0]
[1738640321498,0.03,214.87,214.85,20.0]
[1738640321811,0.03,214.87,214.83,22.87471791]
[1738640321812,0.03,214.87,214.86,22.87471791]
[1738640322610,0.03,214.87,214.86,27.52881791]
[1738640324322,0.03,214.87,214.85,22.87471791]
[1738640324738,0.03,214.87,214.86,22.87471791]
[1738640329236,0.03,214.87,214.85,22.87471791]
[1738640329537,0.03,214.87,214.86,22.87471791]
[1738640330528,0.03,214.87,214.86,42.87471791]
[1738640330742,0.03,214.87,214.86,22.87471791]
[1738640331039,0.03,214.87,214.86,27.52881791]
[1738640332921,0.03,214.87,214.86,22.87471791]